[Event "IM Marmaris Karia IV 2019"]
[Site "Marmaris"]
[Date "2019.01.27"]
[Round "1.2"]
[White "Tanriverdi, Enes"]
[Black "Pacher, Milan"]
[Result "0-1"]
[ECO "D15"]
[WhiteElo "2283"]
[BlackElo "2442"]
[Annotator "NA RC"]
[PlyCount "116"]
[EventDate "2019.01.27"]
[EventType "schev"]
[EventCountry "TUR"]
[SourceTitle "playchess.com"]
[Source "ChessBase"]
[SourceQuality "1"]
[TimeControl "5400+30"]

1. d4 {[%emt 0:00:00]} d5 {[%emt 0:00:00]} 2. c4 {[%emt 0:00:00]} c6 {[%emt 0:00:00]} 3. Nf3 {[%emt 0:00:30]} Nf6 {[%emt 0:00:30]} 4. e3 {[%emt 0:00:30]} Bf5 {[%emt 0:00:30]} 5. Nc3 {[%emt 0:00:30]} a6 {[%emt 0:00:00]} 6. cxd5 {[%emt 0:01:30]} cxd5 {[%emt 0:00:00]} 7. Qb3 {[%emt 0:07:30]} Ra7 {[%emt 0:01:30]} 8. Bd2 {[%emt 0:00:00]} e6 {[%emt 0:02:30]} 9. Nh4 {[%emt 0:01:00]} Bg4 {[%emt 0:01:30]} 10. f3 {[%emt 0:08:30]} Bh5 {[%emt 0:06:30]} 11. O-O-O {[%emt 0:00:30]} Nfd7 {[%emt 0:04:30]} 12. g4 {[%emt 0:02:30]} Qxh4 {[%emt 0:01:30]} 13. gxh5 {[%emt 0:00:00]} Nc6 {[%emt 0:01:30]} 14. Rg1 {[%emt 0:27:00]} Qxh2 {[%emt 0:10:30]} 15. Bd3 {[%emt 0:01:30]} Qxh5 {[%emt 0:01:30]} 16. Rh1 {[%emt 0:01:30]} Qxf3 {[%emt 0:01:03]} 17. Rdf1 {[%emt 0:08:30]} Qg3 {[%emt 0:01:02]} 18. Rhg1 {[%emt 0:07:30]} Qc7 {[%emt 0:02:25]} 19. Kb1 {[%emt 0:02:04]} g6 {[%emt 0:05:30]} 20. e4 {[%emt 0:00:00]} Nxd4 {[%emt 0:02:30]} 21. Qa4 {[%emt 0:00:26]} Bg7 {[%emt 0:04:30]} 22. Rc1 {[%emt 0:23:27]} b5 {[%emt 0:13:30]} 23. Qa3 {[%emt 0:04:22]} Qb8 {[%emt 0:14:30]} 24. Bf4 {[%emt 0:02:01]} Ne5 {[%emt 0:03:30]} 25. exd5 {[%emt 0:00:29]} Rd7 {[%emt 0:01:49]} 26. Ne4 {[%emt 0:00:33]} Rxd5 {[%emt 0:01:21]} 27. Bg5 {[%emt 0:00:34]} Ndc6 {[%emt 0:01:43]} 28. Be2 {[%emt 0:00:31]} f5 {[%emt 0:04:31]} 29. Nf6+ {[%emt 0:00:23]} Bxf6 {[%emt 0:00:04]} 30. Bxf6 {[%emt 0:00:03]} Rf8 {[%emt 0:00:14]} 31. Bg7 {[%emt 0:00:40]} Rf7 {[%emt 0:01:07]} 32. Bxe5 {[%emt 0:00:12]} Qxe5 {[%emt 0:03:47]} 33. Bf3 {[%emt 0:00:18]} Nd8 {[%emt 0:02:14]} 34. Bxd5 {[%emt 0:01:14]} Qxd5 {[%emt 0:00:04]} 35. Qxa6 {[%emt 0:00:25]} Rd7 {[%emt 0:00:51]} 36. Rge1 {[%emt 0:00:38]} Kf7 {[%emt 0:00:28]} 37. Qb6 {[%emt 0:00:00]} e5 {[%emt 0:01:34]} 38. Qg1 {[%emt 0:00:51]} Ne6 {[%emt 0:04:52]} 39. Qh2 {[%emt 0:00:21]} e4 {[%emt 0:00:22]} 40. Qxh7+ {[%emt 0:00:13]} Ng7 {[%emt 0:00:04]} 41. Qh2 {[%emt 0:01:04]} Nh5 {[%emt 0:01:20]} 42. Qf2 {[%emt 0:00:37]} f4 {[%emt 0:00:32]} 43. Qc2 {[%emt 0:00:28]} e3 {[%emt 0:00:56]} 44. Red1 {[%emt 0:00:34]} Qe6 {[%emt 0:00:07]} 45. Rxd7+ {[%emt 0:00:08]} Qxd7 {[%emt 0:00:06]} 46. Ka1 {[%emt 0:00:29]} Kg7 {[%emt 0:02:00]} 47. Qe4 {[%emt 0:00:44]} Kh6 {[%emt 0:00:37]} 48. a3 {[%emt 0:00:15]} Qf5 {[%emt 0:00:46]} 49. Qf3 {[%emt 0:00:39]} Ng3 {[%emt 0:00:19]} 50. Qa8 {[%emt 0:00:44]} e2 {[%emt 0:00:17]} 51. Qh8+ {[%emt 0:00:04]} Kg5 {[%emt 0:00:05]} 52. Qd8+ {[%emt 0:00:43]} Kg4 {[%emt 0:00:05]} 53. Qd4 {[%emt 0:00:07]} g5 {[%emt 0:00:38]} 54. Rg1 {[%emt 0:00:41]} Qe6 {[%emt 0:00:53]} 55. Qd2 {[%emt 0:00:20]} Kf3 {[%emt 0:00:38]} 56. Qc3+ {[%emt 0:00:35]} Qe3 {[%emt 0:00:24]} 57. Qc6+ {[%emt 0:00:14]} Ne4 {[%emt 0:00:09]} 58. Re1 {[%emt 0:00:54]} Kf2 {[%emt 0:00:30]} 0-1

[Event "IM Marmaris Karia IV 2019"]
[Site "Marmaris"]
[Date "2019.01.27"]
[Round "1.3"]
[White "Hamidi, Amir Mohammad"]
[Black "Rzayev, Bahruz"]
[Result "1/2-1/2"]
[ECO "A30"]
[WhiteElo "2221"]
[BlackElo "2359"]
[Annotator "NA"]
[PlyCount "51"]
[EventDate "2019.01.27"]
[EventType "schev"]
[EventCountry "TUR"]
[SourceTitle "playchess.com"]
[Source "ChessBase"]
[SourceQuality "1"]
[TimeControl "5400+30"]

1. d4 {[%emt 0:00:00]} Nf6 {[%emt 0:00:00]} 2. Nf3 {[%emt 0:00:00]} b6 {[%emt 0:00:00]} 3. g3 {[%emt 0:00:30]} Bb7 {[%emt 0:00:30]} 4. Bg2 {[%emt 0:00:30]} c5 {[%emt 0:00:30]} 5. O-O {[%emt 0:02:30]} cxd4 {[%emt 0:00:30]} 6. Nxd4 {[%emt 0:00:30]} Bxg2 {[%emt 0:00:30]} 7. Kxg2 {[%emt 0:00:30]} g6 {[%emt 0:00:30]} 8. c4 {[%emt 0:00:30]} Bg7 {[%emt 0:00:30]} 9. Nc3 {[%emt 0:00:30]} O-O {[%emt 0:00:30]} 10. e4 {[%emt 0:03:30]} Qc7 {[%emt 0:00:30]} 11. Qe2 {[%emt 0:02:30]} Nc6 {[%emt 0:02:30]} 12. Nxc6 {[%emt 0:05:30]} Qxc6 {[%emt 0:00:30]} 13. Bd2 {[%emt 0:02:30]} e6 {[%emt 0:03:30]} 14. Rac1 {[%emt 0:01:30]} Ne8 {[%emt 0:03:30]} 15. Rfd1 {[%emt 0:16:30]} f5 {[%emt 0:01:30]} 16. f3 {[%emt 0:06:30]} Nd6 {[%emt 0:20:30]} 17. Bf4 {[%emt 0:05:30]} Nf7 {[%emt 0:05:30]} 18. exf5 {[%emt 0:10:30]} gxf5 {[%emt 0:08:30]} 19. Nb5 {[%emt 0:01:02]} a6 {[%emt 0:01:30]} 20. Nd6 {[%emt 0:01:02]} Nxd6 {[%emt 0:00:30]} 21. Rxd6 {[%emt 0:00:00]} Qb7 {[%emt 0:00:30]} 22. Rdd1 {[%emt 0:00:00]} Qc6 {[%emt 0:00:00]} 23. Rd6 {[%emt 0:00:00]} Qb7 {[%emt 0:00:00]} 24. Rdd1 {[%emt 0:00:00]} Qc6 {[%emt 0:00:30]} 25. Rd6 {[%emt 0:00:00]} Qb7 {[%emt 0:00:00]} 26. Rdd1 {[%emt 0:00:00]} 1/2-1/2

[Event "IM Marmaris Karia IV 2019"]
[Site "Marmaris"]
[Date "2019.01.27"]
[Round "1.4"]
[White "Mammadova, Narmin"]
[Black "Darban, Morteza"]
[Result "0-1"]
[ECO "B07"]
[WhiteElo "2219"]
[BlackElo "2333"]
[Annotator "NA"]
[PlyCount "92"]
[EventDate "2019.01.27"]
[EventType "schev"]
[EventCountry "TUR"]
[SourceTitle "playchess.com"]
[Source "ChessBase"]
[SourceQuality "1"]
[TimeControl "5400+30"]

1. e4 {[%emt 0:00:00]} d6 {[%emt 0:00:00]} 2. d4 {[%emt 0:00:00]} Nf6 {[%emt 0:00:00]} 3. Bd3 {[%emt 0:02:30]} e5 {[%emt 0:01:30]} 4. dxe5 {[%emt 0:00:30]} dxe5 {[%emt 0:00:30]} 5. Nf3 {[%emt 0:04:30]} Nc6 {[%emt 0:09:30]} 6. c3 {[%emt 0:02:30]} Bd6 {[%emt 0:07:30]} 7. O-O {[%emt 0:01:02]} O-O {[%emt 0:01:03]} 8. h3 {[%emt 0:06:58]} Ne7 {[%emt 0:00:57]} 9. Qc2 {[%emt 0:03:30]} Ng6 {[%emt 0:01:02]} 10. Re1 {[%emt 0:02:30]} Nh5 {[%emt 0:03:58]} 11. Nbd2 {[%emt 0:14:30]} Nhf4 {[%emt 0:04:30]} 12. Bf1 {[%emt 0:04:30]} Qf6 {[%emt 0:01:02]} 13. a4 {[%emt 0:04:30]} a5 {[%emt 0:00:58]} 14. b3 {[%emt 0:01:30]} Rd8 {[%emt 0:11:30]} 15. Ba3 {[%emt 0:12:30]} Bxa3 {[%emt 0:08:30]} 16. Rxa3 {[%emt 0:00:00]} Nh4 {[%emt 0:09:30]} 17. Nxh4 {[%emt 0:05:00]} Qxh4 {[%emt 0:01:30]} 18. Re3 {[%emt 0:02:30]} Be6 {[%emt 0:06:30]} 19. Ra1 {[%emt 0:03:30]} Rd7 {[%emt 0:01:30]} 20. Nf3 {[%emt 0:01:03]} Qh5 {[%emt 0:01:03]} 21. Rb1 {[%emt 0:04:57]} f6 {[%emt 0:00:57]} 22. Kh2 {[%emt 0:04:16]} b6 {[%emt 0:03:30]} 23. b4 {[%emt 0:04:24]} Rd6 {[%emt 0:02:30]} 24. bxa5 {[%emt 0:01:43]} Rxa5 {[%emt 0:00:30]} 25. Rb5 {[%emt 0:00:39]} Ra8 {[%emt 0:02:36]} 26. Rb1 {[%emt 0:04:27]} Bd7 {[%emt 0:02:47]} 27. Ra1 {[%emt 0:03:36]} Qe8 {[%emt 0:01:01]} 28. g3 {[%emt 0:02:02]} Ne6 {[%emt 0:00:23]} 29. Bc4 {[%emt 0:01:58]} Kf8 {[%emt 0:02:14]} 30. Rd3 {[%emt 0:02:38]} Rxd3 {[%emt 0:00:23]} 31. Qxd3 {[%emt 0:00:21]} Nc5 {[%emt 0:00:03]} 32. Qe3 {[%emt 0:00:48]} Rxa4 {[%emt 0:00:58]} 33. Rxa4 {[%emt 0:00:08]} Bxa4 {[%emt 0:00:12]} 34. Nd2 {[%emt 0:00:47]} Bd7 {[%emt 0:02:24]} 35. f4 {[%emt 0:00:39]} Qh5 {[%emt 0:00:38]} 36. f5 {[%emt 0:00:29]} Qd1 {[%emt 0:00:25]} 37. g4 {[%emt 0:00:32]} h6 {[%emt 0:00:27]} 38. Bd5 {[%emt 0:00:30]} Bb5 {[%emt 0:02:07]} 39. c4 {[%emt 0:00:27]} Bd7 {[%emt 0:03:11]} 40. Nf3 {[%emt 0:00:32]} Qd3 {[%emt 0:01:56]} 41. Qf2 {[%emt 0:00:32]} c6 {[%emt 0:01:16]} 42. Be6 {[%emt 0:00:29]} Bxe6 {[%emt 0:02:31]} 43. fxe6 {[%emt 0:00:03]} Nxe6 {[%emt 0:00:33]} 44. Nh4 {[%emt 0:00:56]} Nf4 {[%emt 0:00:59]} 45. Qxb6 {[%emt 0:00:32]} Qxh3+ {[%emt 0:00:21]} 46. Kg1 {[%emt 0:00:03]} Qxg4+ {[%emt 0:00:30]} 0-1

[Event "IM Marmaris Karia IV 2019"]
[Site "Marmaris"]
[Date "2019.01.27"]
[Round "1.5"]
[White "Alaz, Ahmet Efekan"]
[Black "Haussernot, Cecile"]
[Result "0-1"]
[ECO "A03"]
[WhiteElo "2218"]
[BlackElo "2157"]
[Annotator "NA"]
[PlyCount "146"]
[EventDate "2019.01.27"]
[EventType "schev"]
[EventCountry "TUR"]
[SourceTitle "playchess.com"]
[Source "ChessBase"]
[SourceQuality "1"]
[TimeControl "5400+30"]

1. f4 {[%emt 0:00:00]} d5 {[%emt 0:00:00]} 2. Nf3 {[%emt 0:00:00]} Bg4 {[%emt 0:00:00]} 3. e3 {[%emt 0:00:30]} Nd7 {[%emt 0:00:30]} 4. h3 {[%emt 0:00:30]} Bxf3 {[%emt 0:00:30]} 5. Qxf3 {[%emt 0:00:00]} c6 {[%emt 0:02:30]} 6. c4 {[%emt 0:06:00]} Ngf6 {[%emt 0:04:30]} 7. Nc3 {[%emt 0:01:02]} e6 {[%emt 0:01:30]} 8. b3 {[%emt 0:16:58]} Bb4 {[%emt 0:04:30]} 9. Bb2 {[%emt 0:01:30]} Ne4 {[%emt 0:17:30]} 10. Nxe4 {[%emt 0:17:30]} dxe4 {[%emt 0:00:30]} 11. Qf2 {[%emt 0:17:30]} Be7 {[%emt 0:10:30]} 12. O-O-O {[%emt 0:09:30]} Qa5 {[%emt 0:04:30]} 13. Kb1 {[%emt 0:01:02]} Bf6 {[%emt 0:01:30]} 14. d3 {[%emt 0:03:58]} exd3 {[%emt 0:06:30]} 15. Bxd3 {[%emt 0:03:18]} O-O-O {[%emt 0:04:30]} 16. Bxf6 {[%emt 0:05:19]} Nxf6 {[%emt 0:00:30]} 17. Bc2 {[%emt 0:05:37]} Qc3 {[%emt 0:03:30]} 18. e4 {[%emt 0:01:40]} Kb8 {[%emt 0:01:02]} 19. e5 {[%emt 0:00:44]} Nd7 {[%emt 0:05:58]} 20. Rd3 {[%emt 0:03:03]} Qa5 {[%emt 0:01:03]} 21. Rhd1 {[%emt 0:00:06]} Kc8 {[%emt 0:00:30]} 22. Qg3 {[%emt 0:02:12]} Nc5 {[%emt 0:01:57]} 23. Rxd8+ {[%emt 0:01:48]} Rxd8 {[%emt 0:00:30]} 24. Rxd8+ {[%emt 0:00:13]} Qxd8 {[%emt 0:01:30]} 25. Qxg7 {[%emt 0:00:17]} Qd4 {[%emt 0:00:30]} 26. Qxf7 {[%emt 0:01:48]} Qg1+ {[%emt 0:02:30]} 27. Kb2 {[%emt 0:00:01]} Qd4+ {[%emt 0:00:30]} 28. Kb1 {[%emt 0:00:42]} Qg1+ {[%emt 0:00:30]} 29. Kb2 {[%emt 0:00:21]} Qd4+ {[%emt 0:00:00]} 30. Ka3 {[%emt 0:00:42]} b5 {[%emt 0:05:00]} 31. cxb5 {[%emt 0:00:57]} Nd7 {[%emt 0:04:22]} 32. bxc6 {[%emt 0:00:33]} Qc5+ {[%emt 0:01:17]} 33. Kb2 {[%emt 0:00:24]} Qd4+ {[%emt 0:00:32]} 34. Kc1 {[%emt 0:00:20]} Qe3+ {[%emt 0:00:34]} 35. Kd1 {[%emt 0:00:43]} Qg1+ {[%emt 0:00:24]} 36. Kd2 {[%emt 0:00:28]} Qf2+ {[%emt 0:00:40]} 37. Kc3 {[%emt 0:00:23]} Qe3+ {[%emt 0:02:03]} 38. Bd3 {[%emt 0:00:33]} Qc1+ {[%emt 0:02:06]} 39. Kd4 {[%emt 0:00:40]} Qg1+ {[%emt 0:00:32]} 40. Kc3 {[%emt 0:00:32]} Qc1+ {[%emt 0:00:16]} 41. Bc2 {[%emt 0:00:22]} Qe3+ {[%emt 0:00:15]} 42. Kc4 {[%emt 0:00:42]} Nb6+ {[%emt 0:02:27]} 43. Kb5 {[%emt 0:00:28]} Qe2+ {[%emt 0:00:28]} 44. Ka5 {[%emt 0:00:29]} Qxc2 {[%emt 0:00:48]} 45. Qxe6+ {[%emt 0:00:31]} Kc7 {[%emt 0:01:01]} 46. Qd6+ {[%emt 0:00:06]} Kc8 {[%emt 0:00:03]} 47. Qe6+ {[%emt 0:00:36]} Kc7 {[%emt 0:00:04]} 48. Qd6+ {[%emt 0:00:03]} Kc8 {[%emt 0:00:03]} 49. e6 {[%emt 0:01:11]} Qxa2+ {[%emt 0:00:59]} 50. Kb4 {[%emt 0:00:14]} Qe2 {[%emt 0:04:02]} 51. e7 {[%emt 0:00:52]} Qxe7 {[%emt 0:05:08]} 52. Qxe7 {[%emt 0:00:11]} Nd5+ {[%emt 0:00:01]} 53. Kc5 {[%emt 0:00:07]} Nxe7 {[%emt 0:00:02]} 54. Kd6 {[%emt 0:00:41]} Nf5+ {[%emt 0:00:01]} 55. Ke5 {[%emt 0:00:22]} Nh4 {[%emt 0:03:08]} 56. g3 {[%emt 0:00:58]} Nf3+ {[%emt 0:00:26]} 57. Kd6 {[%emt 0:00:19]} Nd4 {[%emt 0:01:08]} 58. g4 {[%emt 0:00:32]} Nxb3 {[%emt 0:00:22]} 59. f5 {[%emt 0:00:13]} Nd2 {[%emt 0:00:36]} 60. Kd5 {[%emt 0:00:54]} Nf3 {[%emt 0:00:20]} 61. f6 {[%emt 0:00:03]} Ng5 {[%emt 0:00:06]} 62. h4 {[%emt 0:00:14]} Nf7 {[%emt 0:00:01]} 63. Ke6 {[%emt 0:00:40]} Nd8+ {[%emt 0:00:01]} 64. Ke7 {[%emt 0:01:05]} a5 {[%emt 0:00:31]} 65. g5 {[%emt 0:00:37]} a4 {[%emt 0:00:32]} 66. h5 {[%emt 0:00:28]} a3 {[%emt 0:00:38]} 67. g6 {[%emt 0:00:28]} hxg6 {[%emt 0:00:31]} 68. hxg6 {[%emt 0:00:36]} a2 {[%emt 0:00:04]} 69. g7 {[%emt 0:00:32]} a1=Q {[%emt 0:00:06]} 70. g8=Q {[%emt 0:00:05]} Qe5+ {[%emt 0:00:09]} 71. Kf8 {[%emt 0:00:18]} Qxf6+ {[%emt 0:00:15]} 72. Ke8 {[%emt 0:00:02]} Ne6 {[%emt 0:00:28]} 73. Qf7 {[%emt 0:01:34]} Qd8# {[%emt 0:00:06]} 0-1

[Event "IM Marmaris Karia IV 2019"]
[Site "Marmaris"]
[Date "2019.01.27"]
[Round "2.2"]
[White "Rzayev, Bahruz"]
[Black "Tanriverdi, Enes"]
[Result "1/2-1/2"]
[ECO "B40"]
[WhiteElo "2359"]
[BlackElo "2283"]
[Annotator "NA"]
[PlyCount "85"]
[EventDate "2019.01.27"]
[EventType "schev"]
[EventCountry "TUR"]
[SourceTitle "playchess.com"]
[Source "ChessBase"]
[SourceQuality "1"]
[TimeControl "5400+30"]

1. e4 {[%emt 0:00:30]} c5 {[%emt 0:00:30]} 2. Nf3 {[%emt 0:00:30]} e6 {[%emt 0:00:30]} 3. b3 {[%emt 0:00:00]} b6 {[%emt 0:00:00]} 4. Bb2 {[%emt 0:01:00]} Bb7 {[%emt 0:00:00]} 5. Nc3 {[%emt 0:00:30]} Nc6 {[%emt 0:00:30]} 6. Be2 {[%emt 0:00:30]} Nge7 {[%emt 0:03:30]} 7. O-O {[%emt 0:00:30]} Ng6 {[%emt 0:00:00]} 8. d4 {[%emt 0:00:30]} cxd4 {[%emt 0:01:00]} 9. Nxd4 {[%emt 0:00:30]} Bc5 {[%emt 0:00:30]} 10. Na4 {[%emt 0:01:30]} Nxd4 {[%emt 0:00:30]} 11. Bxd4 {[%emt 0:00:30]} Bxd4 {[%emt 0:00:00]} 12. Qxd4 {[%emt 0:00:00]} Qg5 {[%emt 0:08:00]} 13. g3 {[%emt 0:04:00]} O-O {[%emt 0:00:30]} 14. f4 {[%emt 0:00:00]} Nxf4 {[%emt 0:00:30]} 15. Bf3 {[%emt 0:04:00]} f5 {[%emt 0:08:30]} 16. exf5 {[%emt 0:14:30]} Rxf5 {[%emt 0:01:30]} 17. Qxd7 {[%emt 0:07:30]} Bxf3 {[%emt 0:05:30]} 18. Rxf3 {[%emt 0:00:00]} Nh3+ {[%emt 0:00:30]} 19. Kg2 {[%emt 0:00:00]} Rxf3 {[%emt 0:00:30]} 20. Kxf3 {[%emt 0:01:30]} Rf8+ {[%emt 0:01:30]} 21. Kg2 {[%emt 0:00:30]} Rf2+ {[%emt 0:00:30]} 22. Kh1 {[%emt 0:00:30]} Qe5 {[%emt 0:00:00]} 23. Nc3 {[%emt 0:00:30]} Qxc3 {[%emt 0:03:00]} 24. Qxe6+ {[%emt 0:00:30]} Kf8 {[%emt 0:02:30]} 25. Qd6+ {[%emt 0:00:30]} Kf7 {[%emt 0:02:30]} 26. Qd5+ {[%emt 0:02:30]} Kg6 {[%emt 0:01:30]} 27. Qe4+ {[%emt 0:01:30]} Kf6 {[%emt 0:17:30]} 28. Rd1 {[%emt 0:01:30]} Rd2 {[%emt 0:00:30]} 29. Rf1+ {[%emt 0:09:30]} Nf2+ {[%emt 0:10:30]} 30. Kg2 {[%emt 0:00:30]} Rxc2 {[%emt 0:02:30]} 31. Qxc2 {[%emt 0:00:30]} Qxc2 {[%emt 0:00:00]} 32. Rxf2+ {[%emt 0:00:00]} Qxf2+ {[%emt 0:00:00]} 33. Kxf2 {[%emt 0:00:00]} Ke5 {[%emt 0:00:30]} 34. Ke3 {[%emt 0:00:30]} g6 {[%emt 0:01:30]} 35. Kd3 {[%emt 0:01:30]} Kf5 {[%emt 0:04:30]} 36. h3 {[%emt 0:01:30]} h5 {[%emt 0:00:30]} 37. Ke3 {[%emt 0:00:30]} Ke5 {[%emt 0:00:30]} 38. h4 {[%emt 0:00:30]} Kf5 {[%emt 0:00:30]} 39. Kf3 {[%emt 0:00:30]} g5 {[%emt 0:00:00]} 40. hxg5 {[%emt 0:00:30]} Kxg5 {[%emt 0:00:00]} 41. Kf2 {[%emt 0:00:00]} Kg4 {[%emt 0:00:00]} 42. Kg2 {[%emt 0:00:00]} Kf5 {[%emt 0:00:00]} 43. Kf3 {[%emt 0:00:30]} 1/2-1/2

[Event "IM Marmaris Karia IV 2019"]
[Site "Marmaris"]
[Date "2019.01.27"]
[Round "2.3"]
[White "Darban, Morteza"]
[Black "Hamidi, Amir Mohammad"]
[Result "1/2-1/2"]
[ECO "C01"]
[WhiteElo "2333"]
[BlackElo "2221"]
[Annotator "NA"]
[PlyCount "60"]
[EventDate "2019.01.27"]
[EventType "schev"]
[EventCountry "TUR"]
[SourceTitle "playchess.com"]
[Source "ChessBase"]
[SourceQuality "1"]
[TimeControl "5400+30"]

1. e4 {[%emt 0:01:30]} e6 {[%emt 0:03:30]} 2. d4 {[%emt 0:00:30]} d5 {[%emt 0:00:30]} 3. exd5 {[%emt 0:00:00]} exd5 {[%emt 0:00:00]} 4. Nf3 {[%emt 0:00:00]} Nf6 {[%emt 0:00:00]} 5. Bd3 {[%emt 0:00:00]} Bd6 {[%emt 0:00:00]} 6. O-O {[%emt 0:00:00]} O-O {[%emt 0:00:00]} 7. Bg5 {[%emt 0:00:30]} Bg4 {[%emt 0:00:30]} 8. Nbd2 {[%emt 0:00:30]} c6 {[%emt 0:00:00]} 9. c3 {[%emt 0:00:00]} Nbd7 {[%emt 0:00:00]} 10. Qc2 {[%emt 0:01:00]} Qc7 {[%emt 0:00:30]} 11. Rfe1 {[%emt 0:00:30]} Rfe8 {[%emt 0:00:30]} 12. Bh4 {[%emt 0:00:30]} Bh5 {[%emt 0:00:30]} 13. Bg3 {[%emt 0:00:00]} Bg6 {[%emt 0:00:30]} 14. Bxg6 {[%emt 0:01:00]} hxg6 {[%emt 0:00:00]} 15. Rxe8+ {[%emt 0:00:00]} Rxe8 {[%emt 0:00:00]} 16. Re1 {[%emt 0:00:00]} Rxe1+ {[%emt 0:00:30]} 17. Nxe1 {[%emt 0:00:00]} Bxg3 {[%emt 0:00:30]} 18. hxg3 {[%emt 0:00:00]} Ne8 {[%emt 0:00:00]} 19. Nd3 {[%emt 0:01:30]} Nd6 {[%emt 0:00:00]} 20. Qb3 {[%emt 0:00:30]} Qb6 {[%emt 0:00:30]} 21. Qxb6 {[%emt 0:00:30]} axb6 {[%emt 0:00:00]} 22. Kf1 {[%emt 0:00:30]} Kf8 {[%emt 0:00:00]} 23. Ke2 {[%emt 0:00:00]} Ke7 {[%emt 0:00:00]} 24. g4 {[%emt 0:00:00]} g5 {[%emt 0:00:00]} 25. f3 {[%emt 0:00:30]} Kd8 {[%emt 0:00:30]} 26. Nf1 {[%emt 0:00:00]} g6 {[%emt 0:00:30]} 27. Ne3 {[%emt 0:00:00]} Nf8 {[%emt 0:00:30]} 28. g3 {[%emt 0:00:30]} Ne6 {[%emt 0:00:00]} 29. Ne5 {[%emt 0:00:30]} Ke7 {[%emt 0:00:00]} 30. Kd2 {[%emt 0:00:30]} Nf8 {[%emt 0:00:30]} 1/2-1/2

[Event "IM Marmaris Karia IV 2019"]
[Site "Marmaris"]
[Date "2019.01.27"]
[Round "2.4"]
[White "Haussernot, Cecile"]
[Black "Mammadova, Narmin"]
[Result "1/2-1/2"]
[ECO "B13"]
[WhiteElo "2157"]
[BlackElo "2219"]
[Annotator "NA"]
[PlyCount "69"]
[EventDate "2019.01.27"]
[EventType "schev"]
[EventCountry "TUR"]
[SourceTitle "playchess.com"]
[Source "ChessBase"]
[SourceQuality "1"]
[TimeControl "5400+30"]

1. d4 {[%emt 0:03:30]} d5 {[%emt 0:00:30]} 2. Bf4 {[%emt 0:00:30]} Nf6 {[%emt 0:00:30]} 3. e3 {[%emt 0:01:30]} c5 {[%emt 0:03:30]} 4. c3 {[%emt 0:00:30]} Nc6 {[%emt 0:00:00]} 5. Nd2 {[%emt 0:12:30]} cxd4 {[%emt 0:01:00]} 6. exd4 {[%emt 0:00:30]} g6 {[%emt 0:00:00]} 7. Bd3 Bg7 {[%emt 0:00:00]} 8. Ngf3 O-O {[%emt 0:00:30]} 9. O-O {[%emt 0:00:30]} Nh5 {[%emt 0:00:30]} 10. Be3 {[%emt 0:00:30]} Qd6 {[%emt 0:01:30]} 11. Re1 {[%emt 0:05:30]} a6 {[%emt 0:07:30]} 12. a4 {[%emt 0:02:30]} Bd7 {[%emt 0:16:30]} 13. Nb3 {[%emt 0:07:30]} Rad8 {[%emt 0:04:30]} 14. Nc5 {[%emt 0:01:30]} Bc8 {[%emt 0:00:30]} 15. b4 {[%emt 0:08:30]} e5 {[%emt 0:09:30]} 16. b5 {[%emt 0:00:30]} exd4 {[%emt 0:02:30]} 17. cxd4 {[%emt 0:01:30]} Nb4 {[%emt 0:14:30]} 18. Bb1 {[%emt 0:01:30]} a5 {[%emt 0:02:30]} 19. Nd3 {[%emt 0:04:30]} Nxd3 {[%emt 0:02:30]} 20. Bxd3 {[%emt 0:00:30]} Nf4 {[%emt 0:03:30]} 21. Bc2 {[%emt 0:05:30]} Bg4 {[%emt 0:05:30]} 22. h3 {[%emt 0:01:30]} Bxf3 {[%emt 0:00:30]} 23. Qxf3 {[%emt 0:00:00]} Ne6 {[%emt 0:00:30]} 24. Rad1 {[%emt 0:04:00]} Qa3 {[%emt 0:04:52]} 25. Qg4 {[%emt 0:03:30]} Qd6 {[%emt 0:03:49]} 26. Bb3 {[%emt 0:11:30]} Rfe8 {[%emt 0:01:31]} 27. g3 {[%emt 0:06:24]} Qb4 {[%emt 0:03:35]} 28. Rb1 {[%emt 0:02:10]} h5 {[%emt 0:01:22]} 29. Qd1 {[%emt 0:01:15]} Qd6 {[%emt 0:01:59]} 30. Qd2 {[%emt 0:01:21]} Qb6 {[%emt 0:02:27]} 31. Qa2 {[%emt 0:01:05]} Qd6 {[%emt 0:01:17]} 32. Qd2 {[%emt 0:00:08]} Qb6 {[%emt 0:01:20]} 33. Qa2 {[%emt 0:00:14]} Qd6 {[%emt 0:01:07]} 34. Qd2 {[%emt 0:01:06]} Qb6 {[%emt 0:00:59]} 35. Qa2 {[%emt 0:00:06]} 1/2-1/2

[Event "IM Marmaris Karia IV 2019"]
[Site "Marmaris"]
[Date "2019.01.29"]
[Round "6.3"]
[White "Rzayev, Bahruz"]
[Black "Hamidi, Amir Mohammad"]
[Result "1-0"]
[ECO "C01"]
[WhiteElo "2359"]
[BlackElo "2221"]
[Annotator "NA"]
[PlyCount "89"]
[EventDate "2019.01.27"]
[EventType "schev"]
[EventCountry "TUR"]
[SourceTitle "playchess.com"]
[Source "ChessBase"]
[SourceQuality "1"]
[TimeControl "5400+30"]

1. e4 {[%emt 0:00:30]} e6 {[%emt 0:00:30]} 2. d4 {[%emt 0:00:30]} d5 {[%emt 0:00:00]} 3. Bd3 {[%emt 0:00:00]} dxe4 {[%emt 0:00:00]} 4. Bxe4 {[%emt 0:00:00]} Nf6 {[%emt 0:00:00]} 5. Bf3 {[%emt 0:00:00]} c5 {[%emt 0:00:00]} 6. Ne2 {[%emt 0:00:00]} Nc6 {[%emt 0:00:00]} 7. Be3 {[%emt 0:00:30]} e5 {[%emt 0:00:00]} 8. Bxc6+ {[%emt 0:05:30]} bxc6 {[%emt 0:00:30]} 9. dxe5 {[%emt 0:00:30]} Qxd1+ {[%emt 0:00:00]} 10. Kxd1 {[%emt 0:00:30]} Ng4 {[%emt 0:00:00]} 11. Nd2 {[%emt 0:02:30]} Nxe5 {[%emt 0:07:30]} 12. Re1 {[%emt 0:01:30]} f6 {[%emt 0:03:30]} 13. Bf4 {[%emt 0:03:30]} Ng6 {[%emt 0:01:30]} 14. Bg3 {[%emt 0:00:30]} Kf7 {[%emt 0:00:30]} 15. a4 {[%emt 0:01:30]} h5 {[%emt 0:00:30]} 16. h4 {[%emt 0:00:30]} Be6 {[%emt 0:04:30]} 17. a5 {[%emt 0:00:30]} Be7 {[%emt 0:01:30]} 18. Ra4 {[%emt 0:07:30]} Rad8 {[%emt 0:02:30]} 19. Kc1 {[%emt 0:00:30]} Rhe8 {[%emt 0:00:30]} 20. f3 {[%emt 0:05:30]} a6 {[%emt 0:10:30]} 21. Nc4 {[%emt 0:10:30]} Bf8 {[%emt 0:05:30]} 22. Nb6 {[%emt 0:03:30]} Bf5 {[%emt 0:06:30]} 23. Bc7 {[%emt 0:07:30]} Rd4 {[%emt 0:00:30]} 24. Nxd4 {[%emt 0:00:30]} Rxe1+ {[%emt 0:00:30]} 25. Kd2 {[%emt 0:00:00]} Re7 {[%emt 0:00:30]} 26. Nxf5 {[%emt 0:00:00]} Rxc7 {[%emt 0:00:00]} 27. Ng3 {[%emt 0:02:30]} Ne7 {[%emt 0:01:00]} 28. Nxh5 {[%emt 0:01:30]} Nf5 {[%emt 0:00:30]} 29. Rg4 {[%emt 0:03:30]} g6 {[%emt 0:01:30]} 30. Nf4 {[%emt 0:03:30]} Nh6 {[%emt 0:00:30]} 31. h5 {[%emt 0:03:30]} Nxg4 {[%emt 0:04:30]} 32. hxg6+ {[%emt 0:00:30]} Kg8 {[%emt 0:01:30]} 33. fxg4 {[%emt 0:00:30]} Bh6 {[%emt 0:00:00]} 34. g3 {[%emt 0:00:30]} Re7 {[%emt 0:14:00]} 35. Kd3 {[%emt 0:03:30]} Re1 {[%emt 0:02:30]} 36. Nh5 {[%emt 0:07:30]} Bg5 {[%emt 0:01:30]} 37. Nc8 {[%emt 0:01:30]} Re8 {[%emt 0:07:30]} 38. Na7 {[%emt 0:00:30]} Re6 {[%emt 0:06:31]} 39. Kc4 {[%emt 0:00:30]} Be3 {[%emt 0:00:41]} 40. Nc8 {[%emt 0:00:30]} Re4+ {[%emt 0:04:30]} 41. Kd3 {[%emt 0:00:30]} Re6 {[%emt 0:00:04]} 42. c3 {[%emt 0:00:30]} Bc1 {[%emt 0:01:26]} 43. b3 {[%emt 0:00:30]} Bh6 {[%emt 0:00:20]} 44. Nb6 {[%emt 0:00:30]} Bf8 {[%emt 0:01:33]} 45. Nd7 {[%emt 0:01:30]} 1-0